[Event "8th Mersin Open 2024"]
[Site "Mersin"]
[Date "2024.11.13"]
[Round "5"]
[White "Tatlioglu, Ege"]
[Black "Azizli, Nurlan"]
[Result "1/2-1/2"]
[ECO "B76"]
[WhiteElo "1910"]
[BlackElo "1853"]
[Annotator "ChessBase"]
[PlyCount "140"]
[EventDate "2024.11.10"]
[EventType "swiss"]
[EventCountry "TUR"]
[SourceTitle "playchess.com"]
[Source "ChessBase"]
[SourceQuality "1"]
[TimeControl "5400+30"]

1. e4 {[%emt 0:01:00]} c5 {[%emt 0:01:00]} 2. Nc3 {[%emt 0:00:30]} Nc6 {[%emt 0:00:30]} 3. Nge2 {[%emt 0:00:00]} d6 {[%emt 0:00:00]} 4. d4 {[%emt 0:00:00]} cxd4 {[%emt 0:00:00]} 5. Nxd4 {[%emt 0:00:00]} g6 {[%emt 0:00:30]} 6. f3 {[%emt 0:00:00]} Bg7 {[%emt 0:00:30]} 7. Be3 {[%emt 0:00:00]} Nf6 {[%emt 0:00:30]} 8. Qd2 {[%emt 0:01:00]} O-O {[%emt 0:00:00]} 9. O-O-O {[%emt 0:07:30]} Nxd4 {[%emt 0:00:00]} 10. Bxd4 {[%emt 0:00:30]} Be6 {[%emt 0:00:30]} 11. Kb1 {[%emt 0:03:30]} Qc7 {[%emt 0:00:30]} 12. h4 {[%emt 0:07:30]} h5 {[%emt 0:00:30]} 13. g4 {[%emt 0:08:30]} Rfc8 {[%emt 0:00:30]} 14. gxh5 {[%emt 0:11:30]} Nxh5 {[%emt 0:00:30]} 15. Bxg7 {[%emt 0:03:30]} Kxg7 {[%emt 0:00:30]} 16. Bd3 {[%emt 0:00:30]} Qa5 {[%emt 0:00:30]} 17. Rhg1 {[%emt 0:00:30]} Rc5 {[%emt 0:00:30]} 18. f4 {[%emt 0:00:30]} Rxc3 {[%emt 0:00:30]} 19. Qxc3+ {[%emt 0:00:30]} Qxc3 {[%emt 0:00:30]} 20. bxc3 {[%emt 0:00:30]} Nxf4 {[%emt 0:00:30]} 21. Rdf1 {[%emt 0:00:30]} Nh5 {[%emt 0:03:30]} 22. Rg5 {[%emt 0:20:30]} Rc8 {[%emt 0:04:30]} 23. Kb2 {[%emt 0:01:30]} Nf6 {[%emt 0:04:30]} 24. Re1 {[%emt 0:03:30]} Nd7 {[%emt 0:07:30]} 25. h5 {[%emt 0:02:30]} Ne5 {[%emt 0:02:30]} 26. Rg3 {[%emt 0:05:30]} Rc5 {[%emt 0:05:30]} 27. hxg6 {[%emt 0:01:30]} fxg6 {[%emt 0:00:30]} 28. Reg1 {[%emt 0:01:30]} Ra5 {[%emt 0:01:30]} 29. a3 {[%emt 0:00:30]} Rc5 {[%emt 0:04:30]} 30. a4 {[%emt 0:02:13]} Ra5 {[%emt 0:03:30]} 31. Bb5 {[%emt 0:01:09]} a6 {[%emt 0:06:30]} 32. Be8 {[%emt 0:00:09]} Bf7 {[%emt 0:03:30]} 33. Bxf7 {[%emt 0:00:44]} Kxf7 {[%emt 0:00:00]} 34. Kb3 {[%emt 0:00:18]} Rc5 {[%emt 0:01:00]} 35. Rh3 {[%emt 0:01:05]} Ke6 {[%emt 0:01:30]} 36. Rh8 {[%emt 0:00:45]} Kd7 {[%emt 0:01:30]} 37. Rb8 {[%emt 0:01:38]} Kc7 {[%emt 0:02:30]} 38. Re8 {[%emt 0:00:05]} Kd7 {[%emt 0:00:30]} 39. Rb8 {[%emt 0:00:05]} Rc7 {[%emt 0:09:30]} 40. Rh1 {[%emt 0:04:06]} Nc4 {[%emt 0:04:30]} 41. Rh2 {[%emt 0:01:24]} Ke6 {[%emt 0:03:30]} 42. Rg8 {[%emt 0:01:11]} Na5+ {[%emt 0:04:30]} 43. Kb2 {[%emt 0:00:36]} Nc4+ {[%emt 0:00:30]} 44. Kb3 {[%emt 0:00:00]} Kf7 {[%emt 0:11:01]} 45. Rb8 {[%emt 0:01:17]} Na5+ {[%emt 0:00:30]} 46. Kb2 {[%emt 0:00:00]} Nc4+ {[%emt 0:03:48]} 47. Kb3 {[%emt 0:01:00]} Na5+ {[%emt 0:00:07]} 48. Kb2 {[%emt 0:00:00]} Nc4+ {[%emt 0:00:29]} 49. Ka2 {[%emt 0:00:54]} Na5 {[%emt 0:00:21]} 50. Rh7+ {[%emt 0:02:08]} Kf6 {[%emt 0:01:19]} 51. Rf8+ {[%emt 0:00:14]} Ke5 {[%emt 0:00:46]} 52. Rg8 {[%emt 0:00:58]} Rxc3 {[%emt 0:01:49]} 53. Rxg6 {[%emt 0:00:08]} Nc6 {[%emt 0:04:35]} 54. Rh5+ {[%emt 0:02:24]} Kd4 {[%emt 0:00:35]} 55. Kb2 {[%emt 0:00:24]} Re3 {[%emt 0:00:32]} 56. Re6 {[%emt 0:02:13]} Kc4 {[%emt 0:01:13]} 57. Rh8 {[%emt 0:01:23]} Kb4 {[%emt 0:01:04]} 58. Rc8 {[%emt 0:00:50]} Ka5 {[%emt 0:00:43]} 59. Rc7 {[%emt 0:01:12]} Kb6 {[%emt 0:00:07]} 60. Rd7 {[%emt 0:00:36]} a5 {[%emt 0:00:26]} 61. c3 {[%emt 0:00:36]} Re2+ {[%emt 0:00:27]} 62. Kb3 {[%emt 0:00:41]} Re1 {[%emt 0:00:12]} 63. e5 {[%emt 0:02:31]} Re2 {[%emt 0:02:55]} 64. Ka3 {[%emt 0:01:11]} Re3 {[%emt 0:00:39]} 65. Kb2 {[%emt 0:00:19]} Re4 {[%emt 0:00:40]} 66. Kb3 {[%emt 0:00:40]} Re2 {[%emt 0:00:27]} 67. Ka3 {[%emt 0:00:33]} Re1 {[%emt 0:00:30]} 68. Kb2 {[%emt 0:00:00]} Re4 {[%emt 0:01:01]} 69. Kc2 {[%emt 0:01:13]} Re3 {[%emt 0:00:30]} 70. Kd2 {[%emt 0:00:30]} Re4 {[%emt 0:00:30]} 1/2-1/2

[Event "8th Mersin Open 2024"]
[Site "Mersin"]
[Date "2024.11.13"]
[Round "5"]
[White "Herdem, Talha"]
[Black "Baghirov, Mahammad"]
[Result "0-1"]
[ECO "E57"]
[WhiteElo "1884"]
[BlackElo "1875"]
[Annotator "NA RC"]
[PlyCount "107"]
[EventDate "2024.11.10"]
[EventType "swiss"]
[EventCountry "TUR"]
[SourceTitle "playchess.com"]
[Source "ChessBase"]
[SourceQuality "1"]
[TimeControl "5400+30"]

1. e4 {[%emt 0:01:00]} c6 {[%emt 0:02:00]} 2. d4 {[%emt 0:00:00]} d5 {[%emt 0:00:00]} 3. exd5 {[%emt 0:00:00]} cxd5 {[%emt 0:00:00]} 4. c4 {[%emt 0:00:30]} Nf6 {[%emt 0:00:00]} 5. Nc3 {[%emt 0:00:00]} Nc6 {[%emt 0:00:00]} 6. Bg5 {[%emt 0:00:00]} dxc4 {[%emt 0:02:30]} 7. Bxc4 {[%emt 0:01:30]} e6 $11 {[%emt 0:01:30]} ({Reject} 7... Qxd4 8. Qxd4 Nxd4 9. O-O-O) ({Of course not} 7... Nxd4 $6 8. Nf3 Nxf3+ 9. Qxf3 $16) 8. Nf3 {[%emt 0:06:30]} Be7 {[%emt 0:00:00]} 9. O-O {[%emt 0:00:30]} O-O {[%emt 0:00:00]} 10. Re1 {[%emt 0:00:30]} h6 {[%emt 0:00:30]} 11. Bh4 {[%emt 0:02:30]} b6 {[%emt 0:02:30]} 12. a3 {[%emt 0:03:30]} Bb7 {[%emt 0:01:30]} 13. Qd3 {[%emt 0:01:30]} Rc8 {[%emt 0:04:30]} 14. Rad1 {[%emt 0:03:30]} Nd5 {[%emt 0:04:30]} 15. Bxe7 {[%emt 0:08:30]} Ncxe7 {[%emt 0:00:30]} 16. Ne5 {[%emt 0:00:30]} Nf4 {[%emt 0:00:30]} 17. Qg3 {[%emt 0:00:30]} Nxg2 {[%emt 0:00:30]} 18. Re4 {[%emt 0:00:30]} Bxe4 {[%emt 0:00:30]} 19. Nxe4 {[%emt 0:00:30]} Nc6 {[%emt 0:00:30]} 20. Nd7 {[%emt 0:19:30]} Qh4 {[%emt 0:08:30]} 21. Nd6 {[%emt 0:29:30]} Rcd8 {[%emt 0:07:30]} 22. Nxf8 {[%emt 0:01:05]} Rxd6 {[%emt 0:01:30]} 23. Nxe6 {[%emt 0:11:24]} Qxg3 {[%emt 0:01:30]} 24. hxg3 {[%emt 0:00:30]} fxe6 {[%emt 0:00:00]} 25. Kxg2 {[%emt 0:00:00]} Kf8 {[%emt 0:01:00]} 26. Re1 {[%emt 0:09:28]} Nxd4 {[%emt 0:00:00]} 27. f4 {[%emt 0:00:15]} Ke7 {[%emt 0:00:00]} 28. g4 {[%emt 0:00:09]} Kf6 {[%emt 0:00:30]} 29. Re4 {[%emt 0:00:38]} Nc6 {[%emt 0:00:30]} 30. Kg3 {[%emt 0:00:56]} g5 {[%emt 0:00:30]} 31. b4 {[%emt 0:00:02]} Ne7 {[%emt 0:00:30]} 32. fxg5+ {[%emt 0:00:49]} hxg5 {[%emt 0:00:30]} 33. Re3 {[%emt 0:00:40]} Ng6 {[%emt 0:00:30]} 34. Bb5 {[%emt 0:00:03]} Nf4 {[%emt 0:00:30]} 35. Rc3 {[%emt 0:00:11]} Rd5 {[%emt 0:00:30]} 36. Ba6 {[%emt 0:00:18]} Rd2 {[%emt 0:00:30]} 37. Rc7 {[%emt 0:01:16]} Ra2 {[%emt 0:00:00]} 38. Rxa7 {[%emt 0:00:15]} Rxa3+ {[%emt 0:00:00]} 39. Kh2 {[%emt 0:00:26]} Ra2+ {[%emt 0:01:30]} 40. Kh1 {[%emt 0:00:31]} Nd3 {[%emt 0:00:30]} 41. b5 {[%emt 0:00:25]} Nf2+ {[%emt 0:00:30]} 42. Kg1 {[%emt 0:00:20]} Nh3+ {[%emt 0:01:30]} 43. Kf1 {[%emt 0:00:45]} Nf4 {[%emt 0:00:30]} 44. Rd7 {[%emt 0:00:11]} Nd5 {[%emt 0:00:30]} 45. Rd6 {[%emt 0:00:45]} Ke5 {[%emt 0:00:30]} 46. Rc6 {[%emt 0:00:20]} Rb2 {[%emt 0:01:30]} 47. Bc8 {[%emt 0:00:16]} Rxb5 {[%emt 0:00:30]} 48. Rxe6+ {[%emt 0:01:06]} Kd4 {[%emt 0:00:00]} 49. Rd6 {[%emt 0:00:28]} Ke3 {[%emt 0:00:00]} 50. Kg2 {[%emt 0:00:54]} Nf4+ {[%emt 0:00:30]} 51. Kg3 {[%emt 0:00:00]} Rb3 {[%emt 0:00:30]} 52. Be6 {[%emt 0:00:24]} Rb2 {[%emt 0:00:30]} 53. Bd5 {[%emt 0:01:05]} Rd2 {[%emt 0:00:30]} 54. Bc6 {[%emt 0:00:35]} 0-1

[Event "8th Mersin Open 2024"]
[Site "Mersin"]
[Date "2024.11.13"]
[Round "5"]
[White "Karaalioglu, Zeynel Mansur"]
[Black "Kilic, Cihan"]
[Result "1/2-1/2"]
[ECO "B13"]
[WhiteElo "1875"]
[BlackElo "1894"]
[Annotator "NA"]
[PlyCount "143"]
[EventDate "2024.11.10"]
[EventType "swiss"]
[EventCountry "TUR"]
[SourceTitle "playchess.com"]
[Source "ChessBase"]
[SourceQuality "1"]
[TimeControl "5400+30"]

1. e4 {[%emt 0:04:00]} c6 {[%emt 0:01:00]} 2. d4 {[%emt 0:00:30]} d5 {[%emt 0:00:00]} 3. exd5 {[%emt 0:00:00]} cxd5 {[%emt 0:00:00]} 4. Bd3 {[%emt 0:00:00]} Nc6 {[%emt 0:00:00]} 5. c3 {[%emt 0:00:00]} e6 {[%emt 0:00:00]} 6. Bf4 {[%emt 0:01:00]} Bd6 {[%emt 0:00:00]} 7. Bg3 {[%emt 0:02:30]} Nge7 {[%emt 0:00:00]} 8. Nf3 {[%emt 0:01:30]} Qc7 {[%emt 0:01:30]} 9. O-O $14 {[%emt 0:03:30]} Bd7 {[%emt 0:10:30]} 10. Nbd2 {[%emt 0:02:30]} O-O {[%emt 0:01:30]} 11. Re1 {[%emt 0:01:30]} f6 {[%emt 0:02:30]} 12. Nb3 {[%emt 0:00:30]} Bxg3 {[%emt 0:05:30]} 13. hxg3 {[%emt 0:00:30]} Nf5 {[%emt 0:09:30]} 14. Bxf5 {[%emt 0:00:30]} exf5 {[%emt 0:00:30]} 15. Nc5 {[%emt 0:00:30]} b6 {[%emt 0:00:30]} 16. Nd3 {[%emt 0:00:30]} Be8 {[%emt 0:00:30]} 17. Nf4 {[%emt 0:00:30]} Bf7 {[%emt 0:00:30]} 18. Qc2 {[%emt 0:00:30]} Qd7 {[%emt 0:00:30]} 19. Nd2 {[%emt 0:00:30]} g5 {[%emt 0:00:30]} 20. Nd3 {[%emt 0:09:30]} Bg6 {[%emt 0:13:30]} 21. f4 {[%emt 0:00:30]} Rfe8 {[%emt 0:02:30]} 22. Nf3 {[%emt 0:09:30]} h6 {[%emt 0:01:30]} 23. Nh2 {[%emt 0:01:30]} Na5 {[%emt 0:02:30]} 24. b3 {[%emt 0:01:30]} Nb7 {[%emt 0:00:30]} 25. Qd2 {[%emt 0:06:30]} Nd6 {[%emt 0:05:30]} 26. Nf2 {[%emt 0:00:30]} Rxe1+ {[%emt 0:04:30]} 27. Rxe1 {[%emt 0:00:30]} Re8 {[%emt 0:00:00]} 28. Nf1 {[%emt 0:00:30]} Kf7 {[%emt 0:07:00]} 29. Ne3 {[%emt 0:02:30]} Qc6 {[%emt 0:06:30]} 30. Ned1 {[%emt 0:01:30]} Bh5 {[%emt 0:01:30]} 31. Nb2 {[%emt 0:03:30]} gxf4 {[%emt 0:04:30]} 32. Rxe8 {[%emt 0:01:30]} fxg3 {[%emt 0:01:30]} 33. Qxh6 {[%emt 0:08:30]} gxf2+ {[%emt 0:01:03]} 34. Kxf2 {[%emt 0:00:30]} Kxe8 {[%emt 0:00:05]} 35. Qxh5+ {[%emt 0:00:30]} Ke7 {[%emt 0:00:22]} 36. Qh7+ {[%emt 0:01:30]} Nf7 {[%emt 0:02:05]} 37. Nd1 {[%emt 0:00:30]} Qe6 {[%emt 0:07:31]} 38. Ne3 {[%emt 0:01:30]} f4 {[%emt 0:00:16]} 39. Nf5+ {[%emt 0:00:30]} Kd8 {[%emt 0:00:21]} 40. Qg8+ {[%emt 0:00:30]} Kc7 {[%emt 0:00:50]} 41. Qh7 {[%emt 0:03:30]} Kc6 {[%emt 0:01:45]} 42. a4 {[%emt 0:01:30]} Ng5 {[%emt 0:00:57]} 43. Qg6 {[%emt 0:05:30]} Ne4+ {[%emt 0:00:38]} 44. Kg1 {[%emt 0:01:30]} Nxc3 {[%emt 0:00:30]} 45. Kh2 {[%emt 0:00:30]} Ne4 {[%emt 0:01:44]} 46. Qh7 {[%emt 0:01:30]} Ng5 {[%emt 0:01:39]} 47. Qg6 {[%emt 0:00:30]} f3 {[%emt 0:00:37]} 48. Ng7 {[%emt 0:00:30]} Qd6+ {[%emt 0:00:58]} 49. Kg1 {[%emt 0:02:30]} fxg2 {[%emt 0:01:08]} 50. Kxg2 {[%emt 0:00:00]} Ne4 {[%emt 0:01:46]} 51. Qe8+ {[%emt 0:00:00]} Kb7 {[%emt 0:00:53]} 52. Nf5 {[%emt 0:03:30]} Qc7 {[%emt 0:01:26]} 53. Qe7 {[%emt 0:00:30]} Qxe7 {[%emt 0:02:03]} 54. Nxe7 {[%emt 0:00:30]} Nc3 {[%emt 0:00:19]} 55. Kf3 {[%emt 0:00:00]} Kc7 {[%emt 0:00:23]} 56. Ng8 {[%emt 0:00:00]} Ne4 {[%emt 0:00:00]} 57. Ne7 {[%emt 0:00:30]} Kd6 {[%emt 0:01:52]} 58. Nc8+ {[%emt 0:00:30]} Kd7 {[%emt 0:00:43]} 59. Nxa7 {[%emt 0:00:30]} Nd2+ {[%emt 0:00:00]} 60. Kf4 {[%emt 0:00:30]} Nxb3 {[%emt 0:00:00]} 61. Nb5 {[%emt 0:00:30]} Nd2 {[%emt 0:01:30]} 62. Kf5 {[%emt 0:00:30]} Ne4 {[%emt 0:00:13]} 63. Kg6 {[%emt 0:00:30]} Kc6 {[%emt 0:01:37]} 64. Kf5 {[%emt 0:00:30]} Kd7 {[%emt 0:00:00]} 65. Kg6 {[%emt 0:00:30]} Ke7 {[%emt 0:00:07]} 66. Kf5 {[%emt 0:00:30]} Ng3+ {[%emt 0:00:19]} 67. Kg6 {[%emt 0:00:30]} Ne2 {[%emt 0:00:12]} 68. Kf5 {[%emt 0:00:30]} Kf7 {[%emt 0:00:44]} 69. Nd6+ {[%emt 0:00:30]} Kg7 {[%emt 0:00:10]} 70. Ne8+ {[%emt 0:00:30]} Kf7 {[%emt 0:00:03]} 71. Nxf6 {[%emt 0:00:30]} Nxd4+ {[%emt 0:01:05]} 72. Ke5 {[%emt 0:00:00]} 1/2-1/2

[Event "8th Mersin Open 2024"]
[Site "Mersin"]
[Date "2024.11.13"]
[Round "5"]
[White "Ghanbarpour, Mahan"]
[Black "Kurdas, Halil Ibrahim"]
[Result "1/2-1/2"]
[ECO "D45"]
[WhiteElo "1803"]
[BlackElo "1887"]
[Annotator "NA"]
[PlyCount "98"]
[EventDate "2024.11.10"]
[EventType "swiss"]
[EventCountry "TUR"]
[SourceTitle "playchess.com"]
[Source "ChessBase"]
[SourceQuality "1"]
[TimeControl "5400+30"]

1. Nf3 {[%emt 0:01:00]} d5 {[%emt 0:01:00]} 2. e3 {[%emt 0:00:00]} Nf6 {[%emt 0:00:30]} 3. c4 {[%emt 0:00:00]} e6 {[%emt 0:00:30]} 4. Nc3 {[%emt 0:00:00]} Nbd7 {[%emt 0:00:00]} 5. b3 {[%emt 0:04:00]} c6 {[%emt 0:01:00]} 6. Bb2 {[%emt 0:00:30]} Bd6 {[%emt 0:00:30]} 7. Qc2 {[%emt 0:00:00]} Qe7 {[%emt 0:01:30]} 8. d4 {[%emt 0:09:00]} O-O {[%emt 0:01:30]} 9. Be2 {[%emt 0:00:30]} Re8 {[%emt 0:00:30]} 10. O-O {[%emt 0:00:30]} e5 {[%emt 0:04:30]} 11. cxd5 {[%emt 0:00:30]} cxd5 {[%emt 0:00:30]} 12. dxe5 {[%emt 0:00:00]} Nxe5 {[%emt 0:00:30]} 13. Rfd1 {[%emt 0:05:00]} Nxf3+ {[%emt 0:09:30]} 14. Bxf3 {[%emt 0:03:30]} Qe5 {[%emt 0:03:30]} 15. g3 {[%emt 0:00:30]} Bf5 {[%emt 0:00:30]} 16. Qd2 {[%emt 0:00:30]} Bb4 {[%emt 0:12:30]} 17. Nxd5 {[%emt 0:19:30]} Bxd2 {[%emt 0:10:30]} 18. Nxf6+ {[%emt 0:00:30]} Qxf6 {[%emt 0:00:30]} 19. Bxf6 {[%emt 0:00:00]} Bxe3 {[%emt 0:01:30]} 20. Bxg7 {[%emt 0:02:00]} Kxg7 {[%emt 0:04:30]} 21. fxe3 {[%emt 0:00:30]} Rxe3 {[%emt 0:00:30]} 22. Bxb7 {[%emt 0:00:30]} Rae8 {[%emt 0:00:00]} 23. Rf1 {[%emt 0:00:30]} Bg4 {[%emt 0:03:00]} 24. Rf4 {[%emt 0:07:30]} f5 {[%emt 0:00:30]} 25. Raf1 {[%emt 0:01:30]} R8e7 {[%emt 0:03:30]} 26. Bf3 {[%emt 0:02:30]} Bh3 {[%emt 0:02:30]} 27. Bg2 {[%emt 0:00:30]} Bg4 {[%emt 0:00:00]} 28. R1f2 {[%emt 0:07:30]} Re1+ {[%emt 0:00:00]} 29. Bf1 {[%emt 0:00:30]} R7e4 {[%emt 0:08:30]} 30. Kg2 {[%emt 0:02:30]} Ra1 {[%emt 0:00:30]} 31. h3 {[%emt 0:04:30]} Rxf4 {[%emt 0:00:30]} 32. gxf4 {[%emt 0:00:00]} Bh5 {[%emt 0:00:30]} 33. Rc2 {[%emt 0:00:00]} Bf7 {[%emt 0:01:30]} 34. Bd3 {[%emt 0:00:30]} Bd5+ {[%emt 0:00:30]} 35. Kg3 {[%emt 0:02:30]} Kf6 {[%emt 0:02:30]} 36. Rc5 {[%emt 0:02:30]} Be4 {[%emt 0:02:30]} 37. Bxe4 {[%emt 0:00:30]} fxe4 {[%emt 0:00:30]} 38. Ra5 {[%emt 0:00:30]} Rf1 {[%emt 0:00:30]} 39. Re5 {[%emt 0:00:30]} Ra1 {[%emt 0:00:30]} 40. Ra5 {[%emt 0:00:30]} Rf1 {[%emt 0:00:30]} 41. Kg2 {[%emt 0:00:30]} Rxf4 {[%emt 0:00:30]} 42. Rxa7 {[%emt 0:00:30]} e3 {[%emt 0:00:30]} 43. Ra4 {[%emt 0:00:30]} Rf2+ {[%emt 0:00:30]} 44. Kg3 {[%emt 0:00:30]} Kf5 {[%emt 0:00:30]} 45. Ra8 {[%emt 0:00:30]} Ke4 {[%emt 0:00:30]} 46. a4 {[%emt 0:00:30]} Rf3+ {[%emt 0:00:30]} 47. Kg2 {[%emt 0:00:30]} Rf2+ {[%emt 0:00:30]} 48. Kg3 {[%emt 0:00:30]} Rf3+ {[%emt 0:00:30]} 49. Kg2 {[%emt 0:00:30]} Rf2+ {[%emt 0:00:30]} 1/2-1/2

[Event "8th Mersin Open 2024"]
[Site "Mersin"]
[Date "2024.11.13"]
[Round "5"]
[White "Doygun, Lena"]
[Black "Sahin, Mert"]
[Result "0-1"]
[ECO "C01"]
[WhiteElo "1593"]
[BlackElo "1534"]
[Annotator "NA RC"]
[PlyCount "86"]
[EventDate "2024.11.10"]
[EventType "swiss"]
[EventCountry "TUR"]
[SourceTitle "playchess.com"]
[Source "ChessBase"]
[SourceQuality "1"]
[TimeControl "5400+30"]

1. e4 {[%emt 0:01:00]} e6 {[%emt 0:01:00]} 2. d4 {[%emt 0:00:30]} d5 {[%emt 0:00:30]} 3. exd5 {[%emt 0:00:00]} exd5 {[%emt 0:00:00]} 4. Bd3 {[%emt 0:00:00]} Bd6 {[%emt 0:00:00]} 5. Nf3 {[%emt 0:00:00]} Nc6 {[%emt 0:00:00]} 6. O-O {[%emt 0:00:00]} Bg4 {[%emt 0:00:00]} 7. c3 {[%emt 0:00:00]} Nge7 {[%emt 0:00:30]} 8. Bg5 {[%emt 0:00:00]} f6 {[%emt 0:00:00]} 9. Bh4 {[%emt 0:00:30]} Qd7 {[%emt 0:00:00]} 10. b4 {[%emt 0:00:30]} O-O {[%emt 0:00:30]} 11. Nbd2 {[%emt 0:01:30]} Bf5 {[%emt 0:00:30]} 12. Nb3 {[%emt 0:01:30]} Bxd3 {[%emt 0:01:30]} 13. Qxd3 {[%emt 0:00:30]} Qf5 {[%emt 0:00:00]} 14. Qe2 {[%emt 0:01:30]} Rae8 {[%emt 0:01:00]} 15. Qb5 {[%emt 0:03:30]} a6 {[%emt 0:01:30]} 16. Qa4 {[%emt 0:09:30]} Nc8 {[%emt 0:03:30]} 17. Nc5 {[%emt 0:02:30]} Nb6 {[%emt 0:01:30]} 18. Qb3 {[%emt 0:00:30]} Bxc5 {[%emt 0:04:30]} 19. bxc5 {[%emt 0:05:30]} Na5 {[%emt 0:01:30]} 20. Qb1 {[%emt 0:01:30]} Qxb1 {[%emt 0:00:30]} 21. Raxb1 {[%emt 0:00:30]} Nbc4 {[%emt 0:00:30]} 22. Rfe1 {[%emt 0:00:30]} Re4 {[%emt 0:01:30]} 23. Rxe4 {[%emt 0:00:30]} dxe4 {[%emt 0:00:30]} 24. Ne1 {[%emt 0:00:30]} b5 {[%emt 0:00:30]} 25. Bg3 {[%emt 0:01:30]} Na3 {[%emt 0:01:30]} 26. Rb2 {[%emt 0:00:30]} c6 {[%emt 0:01:30]} 27. Re2 {[%emt 0:02:30]} f5 {[%emt 0:06:30]} 28. Bd6 {[%emt 0:03:30]} Re8 {[%emt 0:00:30]} 29. Nc2 {[%emt 0:02:30]} Nxc2 {[%emt 0:02:30]} 30. Rxc2 {[%emt 0:00:30]} Nc4 {[%emt 0:00:30]} 31. Bc7 {[%emt 0:01:30]} Na3 {[%emt 0:00:30]} 32. Re2 {[%emt 0:00:30]} g5 {[%emt 0:01:30]} 33. d5 {[%emt 0:08:30]} cxd5 {[%emt 0:02:30]} 34. Rd2 {[%emt 0:00:30]} Rc8 {[%emt 0:04:30]} 35. Bd6 {[%emt 0:03:30]} Kf7 {[%emt 0:00:30]} 36. Rxd5 {[%emt 0:01:30]} Kf6 {[%emt 0:01:30]} 37. Kf1 {[%emt 0:03:30]} Nb1 {[%emt 0:01:30]} 38. f4 {[%emt 0:02:30]} exf3 {[%emt 0:02:30]} 39. gxf3 {[%emt 0:01:30]} Nxc3 {[%emt 0:01:30]} 40. Rd2 {[%emt 0:00:30]} Na4 {[%emt 0:01:30]} 41. Re2 {[%emt 0:01:30]} Rc6 {[%emt 0:02:30]} 42. Kg2 {[%emt 0:02:30]} Nxc5 {[%emt 0:01:30]} 43. Be7+ {[%emt 0:00:30]} Kf7 {[%emt 0:00:30]} 0-1

[Event "8th Mersin Open 2024"]
[Site "Mersin"]
[Date "2024.11.13"]
[Round "5"]
[White "Kocacik, Dogukan"]
[Black "Ulgez, Selin"]
[Result "1-0"]
[ECO "B55"]
[WhiteElo "1586"]
[BlackElo "1569"]
[Annotator "NA RC"]
[PlyCount "77"]
[EventDate "2024.11.10"]
[EventType "swiss"]
[EventCountry "TUR"]
[SourceTitle "playchess.com"]
[Source "ChessBase"]
[SourceQuality "1"]
[TimeControl "5400+30"]

1. e4 {[%emt 0:01:00]} c5 {[%emt 0:01:00]} 2. Nf3 {[%emt 0:00:30]} d6 {[%emt 0:00:30]} 3. d4 {[%emt 0:00:30]} cxd4 {[%emt 0:00:30]} 4. Nxd4 {[%emt 0:00:30]} Nf6 {[%emt 0:00:00]} 5. Bc4 {[%emt 0:00:00]} Nxe4 {[%emt 0:03:00]} 6. Qh5 {[%emt 0:00:00]} g6 {[%emt 0:00:30]} 7. Qd5 {[%emt 0:00:00]} e6 {[%emt 0:17:30]} 8. Qxe4 {[%emt 0:00:00]} Bg7 {[%emt 0:03:30]} 9. Bb5+ {[%emt 0:00:30]} Bd7 {[%emt 0:00:30]} 10. Bxd7+ {[%emt 0:02:30]} Qxd7 {[%emt 0:00:30]} 11. Nc3 {[%emt 0:00:30]} O-O {[%emt 0:01:30]} 12. O-O {[%emt 0:00:30]} d5 {[%emt 0:02:30]} 13. Qd3 {[%emt 0:00:30]} e5 {[%emt 0:00:30]} 14. Nb3 {[%emt 0:01:30]} d4 {[%emt 0:03:30]} 15. Ne2 {[%emt 0:03:30]} Nc6 {[%emt 0:04:30]} 16. c3 {[%emt 0:00:30]} Rfd8 {[%emt 0:02:30]} 17. Rd1 {[%emt 0:01:30]} Rac8 {[%emt 0:01:30]} 18. Bg5 {[%emt 0:00:30]} f6 {[%emt 0:00:30]} 19. Bc1 {[%emt 0:00:30]} f5 {[%emt 0:08:30]} 20. Bg5 {[%emt 0:03:30]} Re8 {[%emt 0:00:30]} 21. cxd4 {[%emt 0:00:30]} exd4 {[%emt 0:01:30]} 22. Nbxd4 {[%emt 0:03:30]} Nxd4 {[%emt 0:00:30]} 23. Nxd4 {[%emt 0:00:30]} Bxd4 {[%emt 0:00:30]} 24. Be3 {[%emt 0:00:30]} Rcd8 {[%emt 0:00:30]} 25. Qb3+ {[%emt 0:00:30]} Qd5 {[%emt 0:04:30]} 26. Qxd5+ {[%emt 0:00:30]} Rxd5 {[%emt 0:00:30]} 27. Rxd4 {[%emt 0:00:30]} Rxd4 {[%emt 0:00:30]} 28. Bxd4 {[%emt 0:00:30]} Re2 {[%emt 0:00:30]} 29. Rd1 {[%emt 0:00:00]} a5 {[%emt 0:01:30]} 30. Bc3 {[%emt 0:00:00]} a4 {[%emt 0:00:30]} 31. Rd8+ {[%emt 0:00:30]} Kf7 {[%emt 0:00:30]} 32. Rh8 {[%emt 0:00:30]} h5 {[%emt 0:01:30]} 33. Rh7+ {[%emt 0:00:30]} Ke6 {[%emt 0:00:30]} 34. Rxb7 {[%emt 0:00:00]} Rc2 {[%emt 0:02:30]} 35. g3 {[%emt 0:01:00]} Re2 {[%emt 0:01:30]} 36. Rb6+ {[%emt 0:00:30]} Kd5 {[%emt 0:02:30]} 37. Rxg6 {[%emt 0:00:00]} Kc4 {[%emt 0:01:30]} 38. Ra6 {[%emt 0:00:00]} Kb5 {[%emt 0:00:30]} 39. Ra5+ {[%emt 0:00:30]} 1-0